[Event "*** SCC Grand Prix: Titled Tuesday Blitz"]
[Site "Chess.com"]
[Date "2020.07.07"]
[Round "1"]
[White "SiddharthGMJagadeesh"]
[Black "Konavets"]
[Result "0-1"]
[WhiteElo "2453"]
[BlackElo "2959"]
[TimeControl "180+1"]
[EndTime "10:06:30 PDT"]
[Termination "Konavets won by resignation"]

1. d4 {[%clk 0:03:00.9]} 1... Nf6 {[%clk 0:02:57.6]} 2. Nc3 {[%clk 0:03:00.9]}
2... d5 {[%clk 0:02:57.4]} 3. Bf4 {[%clk 0:03:01.1]} 3... Bf5 {[%clk 0:02:57.4]}
4. f3 {[%clk 0:02:57.8]} 4... e6 {[%clk 0:02:56.4]} 5. g4 {[%clk 0:02:57.7]}
5... Bg6 {[%clk 0:02:56.7]} 6. h4 {[%clk 0:02:58]} 6... h6 {[%clk 0:02:57.4]} 7.
e3 {[%clk 0:02:57]} 7... Bd6 {[%clk 0:02:56.9]} 8. Nh3 {[%clk 0:02:57.3]} 8...
Bb4 {[%clk 0:02:46.8]} 9. Bd3 {[%clk 0:02:54.4]} 9... Bxd3 {[%clk 0:02:34.9]}
10. Qxd3 {[%clk 0:02:55.3]} 10... c6 {[%clk 0:02:32.4]} 11. O-O-O {[%clk
0:02:51.7]} 11... Nbd7 {[%clk 0:02:27.1]} 12. g5 {[%clk 0:02:45.3]} 12... Nh5
{[%clk 0:02:27.3]} 13. Ne2 {[%clk 0:02:34.5]} 13... Nxf4 {[%clk 0:02:12.9]} 14.
Nexf4 {[%clk 0:02:16.7]} 14... Qe7 {[%clk 0:02:12.8]} 15. Rhg1 {[%clk
0:02:08.8]} 15... hxg5 {[%clk 0:02:11.2]} 16. Rxg5 {[%clk 0:02:02.2]} 16... g6
{[%clk 0:01:46.9]} 17. Rxg6 {[%clk 0:01:04]} 17... fxg6 {[%clk 0:01:42.1]} 18.
Nxg6 {[%clk 0:01:04.9]} 18... Qf6 {[%clk 0:01:40]} 19. Nxh8 {[%clk 0:01:03.3]}
19... Qxh8 {[%clk 0:01:40.9]} 20. Qg6+ {[%clk 0:00:49.8]} 20... Ke7 {[%clk
0:01:41]} 21. Nf4 {[%clk 0:00:42.2]} 21... Qg8 {[%clk 0:01:32.5]} 22. Qh6 {[%clk
0:00:37.5]} 22... Bd6 {[%clk 0:01:31.5]} 23. Ng6+ {[%clk 0:00:35.3]} 23... Kd8
{[%clk 0:01:31.8]} 24. Rg1 {[%clk 0:00:35.3]} 24... Kc7 {[%clk 0:01:31.7]} 25.
Rg4 {[%clk 0:00:34]} 25... Qf7 {[%clk 0:01:31.4]} 26. Nf4 {[%clk 0:00:32.8]}
26... Bxf4 {[%clk 0:01:27.5]} 27. Rxf4 {[%clk 0:00:33.7]} 27... Qe7 {[%clk
0:01:26.1]} 28. c3 {[%clk 0:00:27.3]} 28... Rg8 {[%clk 0:01:23.8]} 29. Rg4
{[%clk 0:00:26.4]} 29... Rf8 {[%clk 0:01:24.3]} 30. Rg7 {[%clk 0:00:25]} 30...
Rf7 {[%clk 0:01:21.5]} 31. Rxf7 {[%clk 0:00:18.6]} 31... Qxf7 {[%clk 0:01:22.4]}
32. f4 {[%clk 0:00:18.4]} 32... Nf6 {[%clk 0:01:21.4]} 33. Qg5 {[%clk
0:00:18.3]} 33... Kd7 {[%clk 0:01:19.1]} 34. Qe5 {[%clk 0:00:17.2]} 34... Ne4
{[%clk 0:01:14.9]} 35. Qb8 {[%clk 0:00:16.5]} 35... Nd6 {[%clk 0:01:13.8]} 36.
Qh8 {[%clk 0:00:16.2]} 36... Qg6 {[%clk 0:01:11.7]} 37. h5 {[%clk 0:00:16.3]}
37... Qg1+ {[%clk 0:01:08.3]} 38. Kc2 {[%clk 0:00:16.7]} 38... Qg2+ {[%clk
0:01:06.5]} 39. Kb3 {[%clk 0:00:15]} 39... Nc4 {[%clk 0:01:06.9]} 40. Qh7+
{[%clk 0:00:11.9]} 40... Kd6 {[%clk 0:01:06.6]} 41. Qc2 {[%clk 0:00:06.2]} 41...
Na5+ {[%clk 0:01:06.7]} 0-1

[Event "*** SCC Grand Prix: Titled Tuesday Blitz"]
[Site "Chess.com"]
[Date "2020.07.07"]
[Round "1"]
[White "Kobalia"]
[Black "Region_07"]
[Result "1-0"]
[WhiteElo "2688"]
[BlackElo "2368"]
[TimeControl "180+1"]
[EndTime "10:06:30 PDT"]
[Termination "Kobalia won on time"]

1. e4 {[%clk 0:02:59.7]} 1... Nc6 {[%clk 0:02:56.3]} 2. Nf3 {[%clk 0:02:58.4]}
2... d6 {[%clk 0:02:55]} 3. d4 {[%clk 0:02:56.6]} 3... Nf6 {[%clk 0:02:53]} 4.
Nc3 {[%clk 0:02:54.8]} 4... g6 {[%clk 0:02:52.3]} 5. Bc4 {[%clk 0:02:51.7]} 5...
Bg7 {[%clk 0:02:50.1]} 6. Qe2 {[%clk 0:02:50.7]} 6... e5 {[%clk 0:02:46.7]} 7.
dxe5 {[%clk 0:02:49.8]} 7... Nxe5 {[%clk 0:02:38.6]} 8. Nxe5 {[%clk 0:02:49]}
8... dxe5 {[%clk 0:02:39.5]} 9. Bg5 {[%clk 0:02:47.1]} 9... c6 {[%clk
0:02:33.7]} 10. Rd1 {[%clk 0:02:45.5]} 10... Qc7 {[%clk 0:02:25.1]} 11. h3
{[%clk 0:02:44.7]} 11... O-O {[%clk 0:02:22.9]} 12. Qf3 {[%clk 0:02:44.2]} 12...
Nh5 {[%clk 0:02:17.2]} 13. O-O {[%clk 0:02:16.6]} 13... Nf4 {[%clk 0:01:58.2]}
14. Ne2 {[%clk 0:02:15.7]} 14... Be6 {[%clk 0:01:52.2]} 15. Bxe6 {[%clk
0:02:10.3]} 15... Nxe6 {[%clk 0:01:44.5]} 16. Be3 {[%clk 0:02:06.5]} 16... Rad8
{[%clk 0:01:40.7]} 17. c3 {[%clk 0:02:06.4]} 17... b6 {[%clk 0:01:36.4]} 18. Nc1
{[%clk 0:02:05.4]} 18... Rxd1 {[%clk 0:01:35.6]} 19. Rxd1 {[%clk 0:02:04]} 19...
Rd8 {[%clk 0:01:36.2]} 20. a4 {[%clk 0:02:01]} 20... Rd7 {[%clk 0:01:20.3]} 21.
b4 {[%clk 0:01:58.1]} 21... Qd8 {[%clk 0:01:19.2]} 22. Rxd7 {[%clk 0:01:57.6]}
22... Qxd7 {[%clk 0:01:20.1]} 23. Qe2 {[%clk 0:01:58]} 23... Nf4 {[%clk
0:01:13.8]} 24. Qd2 {[%clk 0:01:56]} 24... Qxd2 {[%clk 0:01:09]} 25. Bxd2 {[%clk
0:01:56]} 25... Kf8 {[%clk 0:01:04.3]} 26. h4 {[%clk 0:01:55.6]} 26... Ke7
{[%clk 0:01:04]} 27. g3 {[%clk 0:01:55.9]} 27... Ne6 {[%clk 0:01:02]} 28. Kf1
{[%clk 0:01:56.4]} 28... Kd7 {[%clk 0:01:00.3]} 29. Ke2 {[%clk 0:01:55.8]} 29...
Bf8 {[%clk 0:01:00.7]} 30. Kd3 {[%clk 0:01:53]} 30... a6 {[%clk 0:00:52.5]} 31.
c4 {[%clk 0:01:33.9]} 31... b5 {[%clk 0:00:47.6]} 32. axb5 {[%clk 0:01:30.1]}
32... axb5 {[%clk 0:00:47]} 33. c5 {[%clk 0:01:30]} 33... Nd4 {[%clk 0:00:40.7]}
34. Bc3 {[%clk 0:01:28]} 34... Nf3 {[%clk 0:00:09]} 35. Ke2 {[%clk 0:01:27.4]}
35... Nd4+ {[%clk 0:00:07.2]} 36. Bxd4 {[%clk 0:01:26.4]} 36... exd4 {[%clk
0:00:08.1]} 37. Kd3 {[%clk 0:01:26.9]} 37... Bg7 {[%clk 0:00:07.7]} 38. Nb3
{[%clk 0:01:26.3]} 38... Ke6 {[%clk 0:00:06.2]} 39. f4 {[%clk 0:01:23.6]} 39...
h5 {[%clk 0:00:02.1]} 40. Nxd4+ {[%clk 0:01:22.7]} 40... Kd7 {[%clk 0:00:02.4]}
41. e5 {[%clk 0:01:21.3]} 41... Kc7 {[%clk 0:00:01.2]} 42. Ke4 {[%clk
0:01:20.3]} 1-0

[Event "*** SCC Grand Prix: Titled Tuesday Blitz"]
[Site "Chess.com"]
[Date "2020.07.07"]
[Round "1"]
[White "731291"]
[Black "diablanni"]
[Result "1-0"]
[WhiteElo "2621"]
[BlackElo "2300"]
[TimeControl "180+1"]
[EndTime "10:06:30 PDT"]
[Termination "731291 won by resignation"]

1. d4 {[%clk 0:03:00.7]} 1... Nf6 {[%clk 0:02:59.3]} 2. Nf3 {[%clk 0:03:00.5]}
2... e6 {[%clk 0:02:58.4]} 3. c4 {[%clk 0:02:59.4]} 3... Bb4+ {[%clk 0:02:56.1]}
4. Bd2 {[%clk 0:02:58.1]} 4... Qe7 {[%clk 0:02:54.7]} 5. g3 {[%clk 0:02:58.2]}
5... Nc6 {[%clk 0:02:52.4]} 6. Bg2 {[%clk 0:02:57.9]} 6... Bxd2+ {[%clk
0:02:51.3]} 7. Qxd2 {[%clk 0:02:55.6]} 7... Ne4 {[%clk 0:02:50]} 8. Qc2 {[%clk
0:02:53.1]} 8... Qb4+ {[%clk 0:02:50.1]} 9. Kf1 {[%clk 0:02:41.6]} 9... f5
{[%clk 0:02:28.7]} 10. a3 {[%clk 0:02:35.4]} 10... Qe7 {[%clk 0:02:27.3]} 11.
Nc3 {[%clk 0:02:26.9]} 11... Nxc3 {[%clk 0:02:19.7]} 12. Qxc3 {[%clk 0:02:27.8]}
12... O-O {[%clk 0:02:19.2]} 13. Rd1 {[%clk 0:02:13.5]} 13... d6 {[%clk
0:02:17.8]} 14. b4 {[%clk 0:02:08.6]} 14... Qf6 {[%clk 0:01:57]} 15. e3 {[%clk
0:02:05.2]} 15... e5 {[%clk 0:01:47.1]} 16. dxe5 {[%clk 0:01:59.3]} 16... Nxe5
{[%clk 0:01:45.2]} 17. c5 {[%clk 0:01:45]} 17... Bd7 {[%clk 0:01:29.8]} 18. Nxe5
{[%clk 0:01:19.6]} 18... Bb5+ {[%clk 0:01:29.3]} 19. Kg1 {[%clk 0:01:19.1]}
19... dxe5 {[%clk 0:01:29]} 20. Bxb7 {[%clk 0:01:14.2]} 20... Rad8 {[%clk
0:01:29.1]} 21. Kg2 {[%clk 0:01:13.7]} 21... c6 {[%clk 0:01:16.7]} 22. Qb3+
{[%clk 0:01:04.5]} 22... Kh8 {[%clk 0:01:11.3]} 23. a4 {[%clk 0:00:57]} 23...
Be2 {[%clk 0:01:09.3]} 24. Rxd8 {[%clk 0:00:57.2]} 24... Rxd8 {[%clk 0:01:07.4]}
25. b5 {[%clk 0:00:57.5]} 25... e4 {[%clk 0:01:05.3]} 26. Re1 {[%clk 0:00:54.4]}
26... Bf3+ {[%clk 0:01:02.4]} 27. Kg1 {[%clk 0:00:53]} 27... Qh6 {[%clk
0:01:00.5]} 28. Qc4 {[%clk 0:00:41]} 28... Rd3 {[%clk 0:00:45.7]} 29. Qf7 {[%clk
0:00:35.4]} 29... Rd8 {[%clk 0:00:34.1]} 30. h4 {[%clk 0:00:26.5]} 30... Bg4
{[%clk 0:00:27.6]} 31. bxc6 {[%clk 0:00:25.1]} 1-0

[Event "*** SCC Grand Prix: Titled Tuesday Blitz"]
[Site "Chess.com"]
[Date "2020.07.07"]
[Round "1"]
[White "PSvidler"]
[Black "chessablanca"]
[Result "1-0"]
[WhiteElo "3010"]
[BlackElo "2460"]
[TimeControl "180+1"]
[EndTime "10:06:33 PDT"]
[Termination "PSvidler won by resignation"]

1. e4 {[%clk 0:03:00.9]} 1... e5 {[%clk 0:03:00.2]} 2. Nf3 {[%clk 0:03:00.7]}
2... Nc6 {[%clk 0:03:00.5]} 3. Bb5 {[%clk 0:03:00.7]} 3... a6 {[%clk 0:03:00.4]}
4. Ba4 {[%clk 0:03:00.5]} 4... Nf6 {[%clk 0:03:00.5]} 5. O-O {[%clk 0:03:00.5]}
5... Be7 {[%clk 0:03:00.4]} 6. d3 {[%clk 0:03:00]} 6... b5 {[%clk 0:03:00.5]} 7.
Bb3 {[%clk 0:03:00.3]} 7... d6 {[%clk 0:02:59.3]} 8. a4 {[%clk 0:02:56.3]} 8...
b4 {[%clk 0:02:57.8]} 9. Nbd2 {[%clk 0:02:55.3]} 9... O-O {[%clk 0:02:56]} 10.
a5 {[%clk 0:02:54.9]} 10... Rb8 {[%clk 0:02:50.2]} 11. Re1 {[%clk 0:02:52.4]}
11... Be6 {[%clk 0:02:16.3]} 12. Bxe6 {[%clk 0:02:51.2]} 12... fxe6 {[%clk
0:02:17.2]} 13. c3 {[%clk 0:02:52.1]} 13... Nh5 {[%clk 0:02:04.9]} 14. Nc4
{[%clk 0:02:38.3]} 14... Nf4 {[%clk 0:01:56.5]} 15. g3 {[%clk 0:02:22.1]} 15...
Ng6 {[%clk 0:01:48]} 16. Kg2 {[%clk 0:02:14.2]} 16... Qe8 {[%clk 0:01:40.4]} 17.
d4 {[%clk 0:02:11.8]} 17... exd4 {[%clk 0:01:29.8]} 18. cxd4 {[%clk 0:02:11.4]}
18... Qf7 {[%clk 0:01:25]} 19. Be3 {[%clk 0:01:59.6]} 19... d5 {[%clk
0:01:16.1]} 20. exd5 {[%clk 0:01:56.6]} 20... exd5 {[%clk 0:01:17]} 21. Ncd2
{[%clk 0:01:57.2]} 21... Bd6 {[%clk 0:01:11.8]} 22. Qc2 {[%clk 0:01:50.1]} 22...
Qd7 {[%clk 0:01:03]} 23. Ng5 {[%clk 0:01:26.6]} 23... Rbe8 {[%clk 0:00:54.9]}
24. Ndf3 {[%clk 0:01:06.7]} 24... Nce7 {[%clk 0:00:51.2]} 25. Ne5 {[%clk
0:01:02.2]} 25... Bxe5 {[%clk 0:00:43.9]} 26. dxe5 {[%clk 0:01:03.1]} 26... d4
{[%clk 0:00:37.2]} 27. Qc4+ {[%clk 0:01:00.3]} 27... Kh8 {[%clk 0:00:34.8]} 28.
Bxd4 {[%clk 0:00:56.4]} 28... Nf5 {[%clk 0:00:28.4]} 29. Rad1 {[%clk 0:00:53.5]}
29... Nfh4+ {[%clk 0:00:22]} 30. gxh4 {[%clk 0:00:53.2]} 30... Qg4+ {[%clk
0:00:21.3]} 31. Kh1 {[%clk 0:00:52.4]} 31... Nxh4 {[%clk 0:00:15.2]} 32. Rg1
{[%clk 0:00:52.5]} 32... Qh5 {[%clk 0:00:15.5]} 33. e6 {[%clk 0:00:51.2]} 33...
Nf3 {[%clk 0:00:10.8]} 34. Bxg7+ {[%clk 0:00:50.9]} 34... Kxg7 {[%clk
0:00:08.2]} 35. Nxf3+ {[%clk 0:00:50.9]} 35... Kh8 {[%clk 0:00:08.4]} 36. Qd4+
{[%clk 0:00:50.9]} 1-0

[Event "*** SCC Grand Prix: Titled Tuesday Blitz"]
[Site "Chess.com"]
[Date "2020.07.07"]
[Round "1"]
[White "Shushik"]
[Black "Sashadav97"]
[Result "0-1"]
[WhiteElo "2197"]
[BlackElo "2545"]
[TimeControl "180+1"]
[EndTime "10:06:33 PDT"]
[Termination "Sashadav97 won by resignation"]

1. e4 {[%clk 0:03:00.9]} 1... c5 {[%clk 0:02:59.6]} 2. Nf3 {[%clk 0:03:00.7]}
2... Nc6 {[%clk 0:02:59.6]} 3. d4 {[%clk 0:03:00.9]} 3... cxd4 {[%clk
0:03:00.5]} 4. Nxd4 {[%clk 0:03:01.2]} 4... Nf6 {[%clk 0:03:01.1]} 5. Nc3 {[%clk
0:03:01.4]} 5... d6 {[%clk 0:03:01.4]} 6. Bg5 {[%clk 0:03:01.3]} 6... e6 {[%clk
0:03:01.7]} 7. f3 {[%clk 0:02:58.8]} 7... Be7 {[%clk 0:02:56.2]} 8. Qd2 {[%clk
0:02:58]} 8... a6 {[%clk 0:02:54.2]} 9. O-O-O {[%clk 0:02:51.3]} 9... O-O {[%clk
0:02:54.1]} 10. g4 {[%clk 0:02:42.7]} 10... Nxd4 {[%clk 0:02:44.7]} 11. Qxd4
{[%clk 0:02:41.6]} 11... e5 {[%clk 0:02:44.6]} 12. Qd2 {[%clk 0:02:37.4]} 12...
Be6 {[%clk 0:02:44.7]} 13. Be3 {[%clk 0:02:32.9]} 13... Rc8 {[%clk 0:02:22]} 14.
Kb1 {[%clk 0:02:30.9]} 14... b5 {[%clk 0:02:19.5]} 15. g5 {[%clk 0:02:26.1]}
15... Nh5 {[%clk 0:02:18.5]} 16. h4 {[%clk 0:02:25.9]} 16... Ng3 {[%clk
0:02:00.2]} 17. Rg1 {[%clk 0:02:24.7]} 17... Nxf1 {[%clk 0:02:00.4]} 18. Rdxf1
{[%clk 0:02:15.6]} 18... Qc7 {[%clk 0:02:00.8]} 19. Rf2 {[%clk 0:02:12.1]} 19...
Qc4 {[%clk 0:01:35.6]} 20. h5 {[%clk 0:02:00.5]} 20... b4 {[%clk 0:01:30.4]} 21.
Nd5 {[%clk 0:02:00.4]} 21... Bxd5 {[%clk 0:01:30.3]} 22. exd5 {[%clk 0:02:00]}
22... f5 {[%clk 0:01:22.7]} 23. gxf6 {[%clk 0:01:51.4]} 23... Bxf6 {[%clk
0:01:22.9]} 24. Rfg2 {[%clk 0:01:50.3]} 24... Rf7 {[%clk 0:01:22.4]} 25. Bg5
{[%clk 0:01:46.3]} 25... Rcc7 {[%clk 0:01:00.3]} 26. Rg4 {[%clk 0:01:23]} 26...
Bxg5 {[%clk 0:00:44.2]} 27. Rxg5 {[%clk 0:01:21]} 27... Qf4 {[%clk 0:00:43.8]}
28. Qg2 {[%clk 0:01:19.1]} 28... Qxf3 {[%clk 0:00:34.3]} 29. Qd2 {[%clk
0:00:48.2]} 29... Qf1+ {[%clk 0:00:34.2]} 30. Rxf1 {[%clk 0:00:47.9]} 30...
Rxf1+ {[%clk 0:00:34.5]} 31. Qc1 {[%clk 0:00:48]} 31... Rxc1+ {[%clk 0:00:35.1]}
32. Kxc1 {[%clk 0:00:48.3]} 32... Rc5 {[%clk 0:00:35.4]} 33. Rg4 {[%clk
0:00:46.5]} 33... a5 {[%clk 0:00:35.5]} 34. Kd2 {[%clk 0:00:45.4]} 34... Rxd5+
{[%clk 0:00:35.8]} 35. Ke3 {[%clk 0:00:45.7]} 35... Rc5 {[%clk 0:00:35.8]} 36.
Kd3 {[%clk 0:00:44.6]} 36... Kf7 {[%clk 0:00:36.2]} 37. Rg5 {[%clk 0:00:39.6]}
37... e4+ {[%clk 0:00:35.5]} 0-1

[Event "*** SCC Grand Prix: Titled Tuesday Blitz"]
[Site "Chess.com"]
[Date "2020.07.07"]
[Round "1"]
[White "Dyadya81"]
[Black "ZEN-22"]
[Result "1-0"]
[WhiteElo "2733"]
[BlackElo "2396"]
[TimeControl "180+1"]
[EndTime "10:06:36 PDT"]
[Termination "Dyadya81 won by resignation"]

1. e4 {[%clk 0:02:59.1]} 1... e5 {[%clk 0:02:44.6]} 2. Nf3 {[%clk 0:02:58]} 2...
Nc6 {[%clk 0:02:44.1]} 3. d4 {[%clk 0:02:58]} 3... d5 {[%clk 0:02:40.6]} 4. exd5
{[%clk 0:02:43]} 4... Qxd5 {[%clk 0:02:39.1]} 5. Nc3 {[%clk 0:02:41.4]} 5... Bb4
{[%clk 0:02:37.6]} 6. Bd2 {[%clk 0:02:39.3]} 6... Bxc3 {[%clk 0:02:36.8]} 7.
Bxc3 {[%clk 0:02:39.5]} 7... e4 {[%clk 0:02:36.8]} 8. Ne5 {[%clk 0:02:38.1]}
8... Nxe5 {[%clk 0:02:36.5]} 9. dxe5 {[%clk 0:02:39]} 9... Be6 {[%clk 0:02:29]}
10. Qxd5 {[%clk 0:02:36]} 10... Bxd5 {[%clk 0:02:28.4]} 11. O-O-O {[%clk
0:02:34.2]} 11... O-O-O {[%clk 0:02:27.4]} 12. g3 {[%clk 0:02:15.4]} 12... Ne7
{[%clk 0:02:23]} 13. Bh3+ {[%clk 0:02:12.9]} 13... Be6 {[%clk 0:02:20.6]} 14.
Bxe6+ {[%clk 0:02:10.2]} 14... fxe6 {[%clk 0:02:19.9]} 15. Rhe1 {[%clk
0:02:06.7]} 15... Rhf8 {[%clk 0:02:18]} 16. Bb4 {[%clk 0:02:03.2]} 16... Rxd1+
{[%clk 0:02:10.8]} 17. Rxd1 {[%clk 0:01:56]} 17... Rf7 {[%clk 0:02:09.4]} 18.
Bxe7 {[%clk 0:01:55.4]} 18... Rxe7 {[%clk 0:02:08.9]} 19. Kd2 {[%clk 0:01:41.3]}
19... Rd7+ {[%clk 0:02:08.1]} 20. Ke2 {[%clk 0:01:40.9]} 20... Rxd1 {[%clk
0:02:09]} 21. Kxd1 {[%clk 0:01:41.8]} 21... Kd7 {[%clk 0:02:09.5]} 22. Kd2
{[%clk 0:01:37.9]} 22... Kc6 {[%clk 0:02:08.9]} 23. c4 {[%clk 0:01:33.5]} 23...
Kc5 {[%clk 0:02:07.4]} 24. Kc3 {[%clk 0:01:33.6]} 24... a5 {[%clk 0:02:06.3]}
25. b3 {[%clk 0:01:33.8]} 25... b5 {[%clk 0:01:40.4]} 26. cxb5 {[%clk 0:01:28]}
26... Kxb5 {[%clk 0:01:40.3]} 27. Kd4 {[%clk 0:00:22.2]} 27... Kb4 {[%clk
0:01:39.5]} 28. Kxe4 {[%clk 0:00:21.6]} 28... Ka3 {[%clk 0:01:17.5]} 29. f4
{[%clk 0:00:21.7]} 29... g6 {[%clk 0:01:15.6]} 30. g4 {[%clk 0:00:21.8]} 30...
Kxa2 {[%clk 0:01:15.1]} 31. f5 {[%clk 0:00:22.2]} 31... gxf5+ {[%clk 0:01:14.7]}
32. gxf5 {[%clk 0:00:23.1]} 32... exf5+ {[%clk 0:01:12.6]} 33. Kxf5 {[%clk
0:00:23.5]} 33... Kxb3 {[%clk 0:01:08.7]} 34. e6 {[%clk 0:00:23.7]} 34... a4
{[%clk 0:01:09.5]} 35. e7 {[%clk 0:00:24.2]} 35... a3 {[%clk 0:01:10]} 36. e8=Q
{[%clk 0:00:24.6]} 36... a2 {[%clk 0:01:09.9]} 37. Qb5+ {[%clk 0:00:19.3]} 37...
Kc2 {[%clk 0:01:09.3]} 38. Qc4+ {[%clk 0:00:18.7]} 38... Kb2 {[%clk 0:01:09.3]}
39. Qb4+ {[%clk 0:00:18.7]} 39... Kc2 {[%clk 0:01:08.9]} 40. Qa3 {[%clk
0:00:18.5]} 40... Kb1 {[%clk 0:01:06.5]} 41. Qb3+ {[%clk 0:00:18.5]} 41... Kc1
{[%clk 0:01:04.7]} 42. Qxa2 {[%clk 0:00:18.5]} 42... c5 {[%clk 0:01:05]} 43. Ke4
{[%clk 0:00:19.1]} 43... c4 {[%clk 0:01:05]} 44. Kd4 {[%clk 0:00:19.2]} 44... c3
{[%clk 0:01:04.8]} 45. Kxc3 {[%clk 0:00:19.1]} 1-0

[Event "*** SCC Grand Prix: Titled Tuesday Blitz"]
[Site "Chess.com"]
[Date "2020.07.07"]
[Round "1"]
[White "S2PAc"]
[Black "CroissantNeuf"]
[Result "1-0"]
[WhiteElo "2767"]
[BlackElo "2406"]
[TimeControl "180+1"]
[EndTime "10:06:40 PDT"]
[Termination "S2PAc won by resignation"]

1. d4 {[%clk 0:03:00.9]} 1... d5 {[%clk 0:02:58.5]} 2. Nf3 {[%clk 0:03:00.3]}
2... Nf6 {[%clk 0:02:56]} 3. g3 {[%clk 0:03:00.5]} 3... c5 {[%clk 0:02:52]} 4.
Bg2 {[%clk 0:03:00.7]} 4... cxd4 {[%clk 0:02:49.4]} 5. O-O {[%clk 0:03:00]} 5...
h6 {[%clk 0:02:46.5]} 6. b3 {[%clk 0:02:59.7]} 6... Bg4 {[%clk 0:02:22.3]} 7.
Ne5 {[%clk 0:02:35.6]} 7... Bf5 {[%clk 0:02:15.7]} 8. Qxd4 {[%clk 0:02:09.2]}
8... Nbd7 {[%clk 0:02:12.4]} 9. Nxd7 {[%clk 0:01:55.2]} 9... Qxd7 {[%clk
0:02:09.9]} 10. c4 {[%clk 0:01:55]} 10... dxc4 {[%clk 0:01:46.5]} 11. Qxd7+
{[%clk 0:01:49.6]} 11... Bxd7 {[%clk 0:01:37.3]} 12. bxc4 {[%clk 0:01:33]} 12...
O-O-O {[%clk 0:01:18.1]} 13. Nc3 {[%clk 0:01:30.4]} 13... e6 {[%clk 0:01:16.8]}
14. Rb1 {[%clk 0:01:24]} 14... b6 {[%clk 0:01:10.3]} 15. Bf4 {[%clk 0:01:14.9]}
15... Bc5 {[%clk 0:00:58.4]} 16. a4 {[%clk 0:01:14.6]} 16... Rhe8 {[%clk
0:00:48.8]} 17. a5 {[%clk 0:01:13.9]} 17... e5 {[%clk 0:00:48.8]} 18. Bc1 {[%clk
0:00:49.7]} 18... Bf5 {[%clk 0:00:44.6]} 19. Ra1 {[%clk 0:00:46]} 19... bxa5
{[%clk 0:00:34.5]} 20. Ba3 {[%clk 0:00:22.3]} 20... Bd4 {[%clk 0:00:17.1]} 21.
Bb2 {[%clk 0:00:22.3]} 21... e4 {[%clk 0:00:09.8]} 22. Rxa5 {[%clk 0:00:21.3]}
22... Ng4 {[%clk 0:00:09.1]} 23. Rxf5 {[%clk 0:00:20.2]} 1-0

[Event "*** SCC Grand Prix: Titled Tuesday Blitz"]
[Site "Chess.com"]
[Date "2020.07.07"]
[Round "1"]
[White "Onischuk_V"]
[Black "Brave_spirit12"]
[Result "1-0"]
[WhiteElo "2876"]
[BlackElo "2433"]
[TimeControl "180+1"]
[EndTime "10:06:45 PDT"]
[Termination "Onischuk_V won by resignation"]

1. e4 {[%clk 0:02:58]} 1... e6 {[%clk 0:02:57.8]} 2. d4 {[%clk 0:02:57.7]} 2...
d5 {[%clk 0:02:58]} 3. Bd3 {[%clk 0:02:57.8]} 3... c5 {[%clk 0:02:55.8]} 4. exd5
{[%clk 0:02:57.5]} 4... exd5 {[%clk 0:02:55.5]} 5. Nf3 {[%clk 0:02:56.8]} 5...
Nc6 {[%clk 0:02:55.8]} 6. O-O {[%clk 0:02:55.7]} 6... Bd6 {[%clk 0:02:52.1]} 7.
Re1+ {[%clk 0:02:46]} 7... Nge7 {[%clk 0:02:51.7]} 8. dxc5 {[%clk 0:02:44.8]}
8... Bxc5 {[%clk 0:02:52.6]} 9. a3 {[%clk 0:02:42.8]} 9... a5 {[%clk 0:02:46.6]}
10. Nc3 {[%clk 0:02:41.4]} 10... O-O {[%clk 0:02:44.4]} 11. Bf4 {[%clk
0:02:39.1]} 11... h6 {[%clk 0:02:41.2]} 12. Nb5 {[%clk 0:02:37]} 12... Bg4
{[%clk 0:02:37.7]} 13. h3 {[%clk 0:02:32.2]} 13... Bh5 {[%clk 0:02:33.8]} 14. g4
{[%clk 0:02:19.5]} 14... Bg6 {[%clk 0:02:31.3]} 15. Bg3 {[%clk 0:02:20]} 15...
f5 {[%clk 0:02:25.1]} 16. Nc7 {[%clk 0:01:24.7]} 16... fxg4 {[%clk 0:02:19.3]}
17. hxg4 {[%clk 0:01:19.6]} 17... Qd7 {[%clk 0:01:15.8]} 18. Ne6 {[%clk
0:01:19]} 18... Bb6 {[%clk 0:01:09.6]} 19. Nxf8 {[%clk 0:01:14.7]} 19... Qxg4
{[%clk 0:01:07.8]} 20. Nxg6 {[%clk 0:00:57.9]} 20... Qxg3+ {[%clk 0:00:59.4]}
21. Kh1 {[%clk 0:00:57.8]} 21... Bxf2 {[%clk 0:00:40.7]} 22. Nxe7+ {[%clk
0:00:55.5]} 22... Nxe7 {[%clk 0:00:40.8]} 23. Rxe7 {[%clk 0:00:53.4]} 23... Rf8
{[%clk 0:00:35.3]} 24. Nh2 {[%clk 0:00:53.4]} 24... Bc5 {[%clk 0:00:29.7]} 25.
Re2 {[%clk 0:00:49]} 25... Rf4 {[%clk 0:00:21.1]} 26. Rg2 {[%clk 0:00:48.2]}
26... Qh3 {[%clk 0:00:19.5]} 27. Bg6 {[%clk 0:00:45.2]} 27... Qe6 {[%clk
0:00:10.5]} 28. Qe2 {[%clk 0:00:43.7]} 28... Re4 {[%clk 0:00:06.5]} 29. Bxe4
{[%clk 0:00:43]} 29... dxe4 {[%clk 0:00:07.4]} 30. Qg4 {[%clk 0:00:41.7]} 30...
Qe5 {[%clk 0:00:06.9]} 31. Rf1 {[%clk 0:00:38.6]} 31... Bd6 {[%clk 0:00:06.6]}
32. Qc8+ {[%clk 0:00:37.1]} 32... Kh7 {[%clk 0:00:06.4]} 33. Qf5+ {[%clk
0:00:37.6]} 1-0